[Event "Titled Tuesday Blitz June 20 Late 2023"]
[White "Thiel, Thomas"]
[Black "Vargas, Mauricio"]
[WhiteFideId "4615964"]
[BlackFideId "4404572"]
[WhiteElo "2198"]
[BlackElo "1986"]
[Result "1-0"]
[Round "7"]
[TimeControl "180+2"]
[Date "2023.06.20"]
[WhiteClock "0:01:27"]
[BlackClock "0:00:16"]
[Board "143"]

1. e4 {[%clk 0:03:00]}  Nc6 {[%clk 0:02:56]} 2. Nf3 {[%clk 0:02:58]}  d5 {[%clk 0:02:55]} 3. exd5 {[%clk 0:02:56]}  Qxd5 {[%clk 0:02:55]} 4. Nc3 {[%clk 0:02:56]}  Qd6 {[%clk 0:02:55]} 5. Bb5 {[%clk 0:02:50]}  a6 {[%clk 0:02:55]} 6. Bxc6+ {[%clk 0:02:48]}  Qxc6 {[%clk 0:02:53]} 7. d4 {[%clk 0:02:48]}  e6 {[%clk 0:02:38]} 8. O-O {[%clk 0:02:45]}  b5 {[%clk 0:02:37]} 9. Ne5 {[%clk 0:02:44]}  Qd6 {[%clk 0:02:23]} 10. Qf3 {[%clk 0:02:43]}  Bb7 {[%clk 0:02:01]} 11. Qxb7 {[%clk 0:02:39]}  Rd8 {[%clk 0:01:57]} 12. Be3 {[%clk 0:02:38]}  f6 {[%clk 0:01:56]} 13. Nc6 {[%clk 0:02:20]}  Rd7 {[%clk 0:01:55]} 14. Ne4 {[%clk 0:02:13]}  Qd5 {[%clk 0:01:49]} 15. Nc5 {[%clk 0:02:12]}  Rd6 {[%clk 0:01:43]} 16. Qc8+ {[%clk 0:02:05]}  Kf7 {[%clk 0:01:43]} 17. Nb4 {[%clk 0:02:02]}  Qh5 {[%clk 0:01:28]} 18. Qxc7+ {[%clk 0:02:01]}  Kg6 {[%clk 0:01:20]} 19. Nc6 {[%clk 0:01:48]}  Rd5 {[%clk 0:01:10]} 20. Nxe6 {[%clk 0:01:44]}  Qh4 {[%clk 0:00:46]} 21. Nxf8+ {[%clk 0:01:42]}  Kh5 {[%clk 0:00:41]} 22. Qxg7 {[%clk 0:01:35]}  Nh6 {[%clk 0:00:16]} 23. Qxh8 {[%clk 0:01:27]} 1-0


[Site "https://www.chess.com"]

[Event "Titled Tuesday Blitz June 20 Late 2023"]
[White "Antonio, Jorge Carlos"]
[Black "Ricaurte Lopez, Juan Carlos"]
[WhiteFideId "113190"]
[BlackFideId "3600327"]
[WhiteElo "2247"]
[BlackElo "2200"]
[Result "1-0"]
[Round "7"]
[TimeControl "180+2"]
[Date "2023.06.20"]
[WhiteClock "0:00:50"]
[BlackClock "0:00:25"]
[Board "148"]

1. d4 {[%clk 0:03:00]}  Nf6 {[%clk 0:02:58]} 2. Nf3 {[%clk 0:03:00]}  e6 {[%clk 0:02:58]} 3. Bf4 {[%clk 0:02:59]}  b6 {[%clk 0:02:57]} 4. e3 {[%clk 0:02:59]}  Bb7 {[%clk 0:02:57]} 5. Be2 {[%clk 0:02:57]}  Be7 {[%clk 0:02:53]} 6. O-O {[%clk 0:02:57]}  Nh5 {[%clk 0:02:52]} 7. Be5 {[%clk 0:02:54]}  d6 {[%clk 0:02:48]} 8. Bg3 {[%clk 0:02:49]}  Nxg3 {[%clk 0:02:46]} 9. hxg3 {[%clk 0:02:49]}  O-O {[%clk 0:02:45]} 10. Nbd2 {[%clk 0:02:46]}  f5 {[%clk 0:02:36]} 11. Bd3 {[%clk 0:02:41]}  c5 {[%clk 0:02:31]} 12. c3 {[%clk 0:02:40]}  Nd7 {[%clk 0:02:26]} 13. Re1 {[%clk 0:02:40]}  Nf6 {[%clk 0:02:25]} 14. Ng5 {[%clk 0:02:37]}  Qd7 {[%clk 0:02:21]} 15. Bc4 {[%clk 0:02:31]}  d5 {[%clk 0:02:12]} 16. Bd3 {[%clk 0:02:31]}  Ne4 {[%clk 0:01:54]} 17. Ngf3 {[%clk 0:02:28]}  Bf6 {[%clk 0:01:49]} 18. Ne5 {[%clk 0:02:17]}  Bxe5 {[%clk 0:01:43]} 19. dxe5 {[%clk 0:02:17]}  Rad8 {[%clk 0:01:37]} 20. Nf1 {[%clk 0:01:53]}  a6 {[%clk 0:01:18]} 21. Qh5 {[%clk 0:01:46]}  g6 {[%clk 0:01:12]} 22. Qh6 {[%clk 0:01:43]}  d4 {[%clk 0:01:07]} 23. exd4 {[%clk 0:01:28]}  cxd4 {[%clk 0:01:06]} 24. c4 {[%clk 0:01:28]}  Nc5 {[%clk 0:01:02]} 25. Rad1 {[%clk 0:01:12]}  Nxd3 {[%clk 0:01:02]} 26. Rxd3 {[%clk 0:01:11]}  Be4 {[%clk 0:01:02]} 27. Rdd1 {[%clk 0:01:10]}  Bc2 {[%clk 0:01:00]} 28. Rd2 {[%clk 0:01:09]}  d3 {[%clk 0:00:59]} 29. Ne3 {[%clk 0:01:04]}  Ba4 {[%clk 0:00:48]} 30. b3 {[%clk 0:01:03]}  Bc6 {[%clk 0:00:47]} 31. Red1 {[%clk 0:01:01]}  Qd4 {[%clk 0:00:44]} 32. Rxd3 {[%clk 0:00:58]}  Qxd3 {[%clk 0:00:44]} 33. Rxd3 {[%clk 0:00:58]}  Rxd3 {[%clk 0:00:44]} 34. Qg5 {[%clk 0:00:52]}  Kf7 {[%clk 0:00:25]} 35. Qf6+ {[%clk 0:00:50]} 1-0


[Site "https://www.chess.com"]

[Event "Titled Tuesday Blitz June 20 Late 2023"]
[White "Firouzja, Alireza"]
[Black "Anton Guijarro, David"]
[WhiteFideId "12573981"]
[BlackFideId "2285525"]
[WhiteElo "2896"]
[BlackElo "2618"]
[Result "1/2-1/2"]
[Round "8"]
[TimeControl "180+2"]
[Date "2023.06.20"]
[WhiteClock "0:00:03"]
[BlackClock "0:00:07"]
[Board "2"]

1. e4 {[%clk 0:02:41]}  c6 {[%clk 0:03:00]} 2. d4 {[%clk 0:02:40]}  d5 {[%clk 0:03:00]} 3. Nc3 {[%clk 0:02:39]}  dxe4 {[%clk 0:03:00]} 4. Nxe4 {[%clk 0:02:39]}  Nf6 {[%clk 0:03:00]} 5. Nxf6+ {[%clk 0:02:32]}  exf6 {[%clk 0:03:01]} 6. c3 {[%clk 0:02:28]}  Bd6 {[%clk 0:03:01]} 7. Bd3 {[%clk 0:02:27]}  O-O {[%clk 0:03:01]} 8. Qc2 {[%clk 0:02:27]}  Re8+ {[%clk 0:03:01]} 9. Ne2 {[%clk 0:02:27]}  h5 {[%clk 0:03:01]} 10. O-O {[%clk 0:02:26]}  h4 {[%clk 0:03:01]} 11. h3 {[%clk 0:02:04]}  Nd7 {[%clk 0:03:00]} 12. Bf4 {[%clk 0:02:00]}  Nf8 {[%clk 0:02:58]} 13. Bxd6 {[%clk 0:02:00]}  Qxd6 {[%clk 0:02:59]} 14. Rfe1 {[%clk 0:02:00]}  Bd7 {[%clk 0:02:51]} 15. Qd2 {[%clk 0:01:59]}  Ng6 {[%clk 0:02:51]} 16. Rad1 {[%clk 0:01:47]}  Re7 {[%clk 0:02:24]} 17. Bxg6 {[%clk 0:01:43]}  fxg6 {[%clk 0:02:23]} 18. Nf4 {[%clk 0:01:44]}  g5 {[%clk 0:02:04]} 19. Rxe7 {[%clk 0:01:43]}  Qxe7 {[%clk 0:02:04]} 20. Re1 {[%clk 0:01:44]}  Qf7 {[%clk 0:02:04]} 21. Nd3 {[%clk 0:01:43]}  Re8 {[%clk 0:02:00]} 22. b3 {[%clk 0:01:36]}  b6 {[%clk 0:01:57]} 23. c4 {[%clk 0:01:34]}  Bf5 {[%clk 0:01:56]} 24. Nb4 {[%clk 0:01:32]}  Rxe1+ {[%clk 0:01:38]} 25. Qxe1 {[%clk 0:01:31]}  Qd7 {[%clk 0:01:37]} 26. d5 {[%clk 0:01:31]}  cxd5 {[%clk 0:01:37]} 27. Nxd5 {[%clk 0:01:28]}  Be6 {[%clk 0:01:34]} 28. Nc3 {[%clk 0:01:07]}  g4 {[%clk 0:01:32]} 29. hxg4 {[%clk 0:01:06]}  Bxg4 {[%clk 0:01:33]} 30. f3 {[%clk 0:01:00]}  Qd4+ {[%clk 0:01:12]} 31. Kh1 {[%clk 0:00:59]}  Bd7 {[%clk 0:01:02]} 32. Nd5 {[%clk 0:00:57]}  h3 {[%clk 0:00:38]} 33. gxh3 {[%clk 0:00:52]}  Qd3 {[%clk 0:00:31]} 34. Kg2 {[%clk 0:00:30]}  Qc2+ {[%clk 0:00:22]} 35. Kg3 {[%clk 0:00:28]}  Qg6+ {[%clk 0:00:22]} 36. Kf2 {[%clk 0:00:25]}  Qc2+ {[%clk 0:00:21]} 37. Qe2 {[%clk 0:00:15]}  Qxe2+ {[%clk 0:00:21]} 38. Kxe2 {[%clk 0:00:16]}  Bxh3 {[%clk 0:00:22]} 39. Ne7+ {[%clk 0:00:17]}  Kf7 {[%clk 0:00:22]} 40. Nc6 {[%clk 0:00:18]}  a5 {[%clk 0:00:17]} 41. Ke3 {[%clk 0:00:15]}  Bd7 {[%clk 0:00:17]} 42. Nd4 {[%clk 0:00:16]}  Ke7 {[%clk 0:00:17]} 43. Ne2 {[%clk 0:00:15]}  g5 {[%clk 0:00:17]} 44. Ng3 {[%clk 0:00:11]}  Kd6 {[%clk 0:00:17]} 45. f4 {[%clk 0:00:11]}  Bc6 {[%clk 0:00:15]} 46. Nh5 {[%clk 0:00:09]}  Ke6 {[%clk 0:00:16]} 47. Ng7+ {[%clk 0:00:08]}  Kd6 {[%clk 0:00:15]} 48. Nh5 {[%clk 0:00:08]}  Ke7 {[%clk 0:00:15]} 49. f5 {[%clk 0:00:03]}  Bg2 {[%clk 0:00:11]} 50. Kd4 {[%clk 0:00:03]}  Bh3 {[%clk 0:00:09]} 51. Ng3 {[%clk 0:00:03]}  Kd6 {[%clk 0:00:07]} 52. a3 {[%clk 0:00:03]}  Bg2 {[%clk 0:00:04]} 53. b4 {[%clk 0:00:03]}  axb4 {[%clk 0:00:04]} 54. axb4 {[%clk 0:00:04]}  Bh3 {[%clk 0:00:04]} 55. Ne4+ {[%clk 0:00:03]}  Ke7 {[%clk 0:00:04]} 56. Ng3 {[%clk 0:00:03]}  Kd6 {[%clk 0:00:04]} 57. b5 {[%clk 0:00:02]}  Bg4 {[%clk 0:00:04]} 58. Ne4+ {[%clk 0:00:03]}  Ke7 {[%clk 0:00:04]} 59. Nc3 {[%clk 0:00:03]}  Bxf5 {[%clk 0:00:04]} 60. Nd5+ {[%clk 0:00:04]}  Kd6 {[%clk 0:00:04]} 61. Nxb6 {[%clk 0:00:04]}  Be6 {[%clk 0:00:04]} 62. c5+ {[%clk 0:00:05]}  Kc7 {[%clk 0:00:05]} 63. Na4 {[%clk 0:00:03]}  g4 {[%clk 0:00:05]} 64. Nc3 {[%clk 0:00:03]}  g3 {[%clk 0:00:05]} 65. Ke3 {[%clk 0:00:04]}  f5 {[%clk 0:00:05]} 66. Ne2 {[%clk 0:00:02]}  Bc4 {[%clk 0:00:05]} 67. b6+ {[%clk 0:00:02]}  Kc6 {[%clk 0:00:05]} 68. Nxg3 {[%clk 0:00:02]}  Ba6 {[%clk 0:00:06]} 69. Kd4 {[%clk 0:00:02]}  f4 {[%clk 0:00:06]} 70. Ne4 {[%clk 0:00:02]}  f3 {[%clk 0:00:06]} 71. Nf2 {[%clk 0:00:03]}  Bb7 {[%clk 0:00:06]} 72. Nd3 {[%clk 0:00:03]}  Kb5 {[%clk 0:00:06]} 73. Nf2 {[%clk 0:00:03]}  Kc6 {[%clk 0:00:06]} 74. Ne4 {[%clk 0:00:03]}  Kb5 {[%clk 0:00:06]} 75. Nd6+ {[%clk 0:00:02]}  Kc6 {[%clk 0:00:06]} 76. Ke3 {[%clk 0:00:02]}  Kxc5 {[%clk 0:00:06]} 77. Nxb7+ {[%clk 0:00:02]}  Kxb6 {[%clk 0:00:07]} 78. Kxf3 {[%clk 0:00:03]} 1/2-1/2


[Site "https://www.chess.com"]

[Event "Titled Tuesday Blitz June 20 Late 2023"]
[White "Kollars, Dmitrij"]
[Black "Xiong, Jeffery"]
[WhiteFideId "12909572"]
[BlackFideId "2047640"]
[WhiteElo "2584"]
[BlackElo "2726"]
[Result "1/2-1/2"]
[Round "8"]
[TimeControl "180+2"]
[Date "2023.06.20"]
[WhiteClock "0:01:17"]
[BlackClock "0:02:08"]
[Board "3"]

1. e4 {[%clk 0:03:00]}  e6 {[%clk 0:02:58]} 2. d4 {[%clk 0:03:01]}  d5 {[%clk 0:02:59]} 3. Nc3 {[%clk 0:03:01]}  Nf6 {[%clk 0:02:59]} 4. Bg5 {[%clk 0:03:01]}  dxe4 {[%clk 0:02:59]} 5. Nxe4 {[%clk 0:03:00]}  Be7 {[%clk 0:03:00]} 6. Nxf6+ {[%clk 0:03:01]}  Bxf6 {[%clk 0:03:00]} 7. Bxf6 {[%clk 0:03:01]}  Qxf6 {[%clk 0:03:00]} 8. Nf3 {[%clk 0:03:02]}  O-O {[%clk 0:02:57]} 9. Qd3 {[%clk 0:03:02]}  Nc6 {[%clk 0:02:54]} 10. O-O-O {[%clk 0:03:02]}  e5 {[%clk 0:02:52]} 11. dxe5 {[%clk 0:02:38]}  Nxe5 {[%clk 0:02:51]} 12. Nxe5 {[%clk 0:02:38]}  Qxe5 {[%clk 0:02:52]} 13. Qd4 {[%clk 0:02:39]}  Qxd4 {[%clk 0:02:29]} 14. Rxd4 {[%clk 0:02:40]}  Be6 {[%clk 0:02:13]} 15. Bc4 {[%clk 0:02:38]}  Rfd8 {[%clk 0:02:12]} 16. Rxd8+ {[%clk 0:02:10]}  Rxd8 {[%clk 0:02:13]} 17. Bxe6 {[%clk 0:02:10]}  fxe6 {[%clk 0:02:14]} 18. Rd1 {[%clk 0:02:11]}  Rxd1+ {[%clk 0:02:06]} 19. Kxd1 {[%clk 0:02:11]}  Kf7 {[%clk 0:02:06]} 20. Kd2 {[%clk 0:02:10]}  Kf6 {[%clk 0:02:07]} 21. Ke3 {[%clk 0:01:17]}  Ke5 {[%clk 0:02:08]} 1/2-1/2


[Site "https://www.chess.com"]

[Event "Titled Tuesday Blitz June 20 Late 2023"]
[White "Ibarra Jerez, Jose Carlos"]
[Black "Terry, Renato"]
[WhiteFideId "2226332"]
[BlackFideId "3803457"]
[WhiteElo "2631"]
[BlackElo "2575"]
[Result "0-1"]
[Round "8"]
[TimeControl "180+2"]
[Date "2023.06.20"]
[WhiteClock "0:00:00"]
[BlackClock "0:00:08"]
[Board "5"]

1. d4 {[%clk 0:03:00]}  e6 {[%clk 0:02:55]} 2. Bf4 {[%clk 0:03:00]}  Nf6 {[%clk 0:02:55]} 3. e3 {[%clk 0:02:59]}  d5 {[%clk 0:02:53]} 4. Nd2 {[%clk 0:02:58]}  Bd6 {[%clk 0:02:53]} 5. Bg3 {[%clk 0:02:58]}  c5 {[%clk 0:02:50]} 6. Bb5+ {[%clk 0:02:55]}  Nc6 {[%clk 0:02:50]} 7. c3 {[%clk 0:02:54]}  O-O {[%clk 0:02:41]} 8. Ngf3 {[%clk 0:02:53]}  cxd4 {[%clk 0:02:32]} 9. exd4 {[%clk 0:02:52]}  Ne4 {[%clk 0:02:21]} 10. Bxd6 {[%clk 0:02:35]}  Nxd6 {[%clk 0:02:17]} 11. Bd3 {[%clk 0:02:30]}  f5 {[%clk 0:01:50]} 12. O-O {[%clk 0:02:24]}  Ne4 {[%clk 0:01:48]} 13. Nb3 {[%clk 0:02:15]}  Bd7 {[%clk 0:01:45]} 14. Qe2 {[%clk 0:02:05]}  Qf6 {[%clk 0:01:32]} 15. Ne5 {[%clk 0:02:00]}  Nxe5 {[%clk 0:01:31]} 16. dxe5 {[%clk 0:02:01]}  Qe7 {[%clk 0:01:30]} 17. f3 {[%clk 0:01:55]}  Nc5 {[%clk 0:01:28]} 18. Nd4 {[%clk 0:01:55]}  f4 {[%clk 0:01:24]} 19. Bc2 {[%clk 0:01:51]}  Qg5 {[%clk 0:01:20]} 20. Rfe1 {[%clk 0:01:33]}  Rae8 {[%clk 0:01:18]} 21. a4 {[%clk 0:01:27]}  Re7 {[%clk 0:01:00]} 22. a5 {[%clk 0:01:25]}  Na6 {[%clk 0:00:56]} 23. Qf2 {[%clk 0:01:16]}  Nb8 {[%clk 0:00:55]} 24. Bd3 {[%clk 0:01:11]}  a6 {[%clk 0:00:50]} 25. Re2 {[%clk 0:01:06]}  Nc6 {[%clk 0:00:50]} 26. Nxc6 {[%clk 0:01:03]}  Bxc6 {[%clk 0:00:51]} 27. Qd4 {[%clk 0:00:57]}  Rc8 {[%clk 0:00:43]} 28. Qb4 {[%clk 0:00:57]}  Rd7 {[%clk 0:00:40]} 29. Qd4 {[%clk 0:00:55]}  Rf7 {[%clk 0:00:38]} 30. Rae1 {[%clk 0:00:55]}  g6 {[%clk 0:00:36]} 31. Rf2 {[%clk 0:00:49]}  Qd8 {[%clk 0:00:32]} 32. Rd1 {[%clk 0:00:45]}  Qxa5 {[%clk 0:00:30]} 33. b4 {[%clk 0:00:39]}  Qd8 {[%clk 0:00:29]} 34. Ra1 {[%clk 0:00:24]}  Qe8 {[%clk 0:00:25]} 35. Ra5 {[%clk 0:00:23]}  Kg7 {[%clk 0:00:23]} 36. Rfa2 {[%clk 0:00:23]}  g5 {[%clk 0:00:21]} 37. h3 {[%clk 0:00:21]}  Rfc7 {[%clk 0:00:19]} 38. R5a3 {[%clk 0:00:18]}  Bb5 {[%clk 0:00:19]} 39. Bc2 {[%clk 0:00:02]}  Bc4 {[%clk 0:00:15]} 40. Ra1 {[%clk 0:00:02]}  Qf7 {[%clk 0:00:14]} 41. Re1 {[%clk 0:00:02]}  Bb5 {[%clk 0:00:15]} 42. Kf2 {[%clk 0:00:01]}  Qh5 {[%clk 0:00:15]} 43. Kg1 {[%clk 0:00:01]}  Qh4 {[%clk 0:00:15]} 44. Qd2 {[%clk 0:00:02]}  Rc4 {[%clk 0:00:15]} 45. Bd3 {[%clk 0:00:02]}  R4c7 {[%clk 0:00:14]} 46. Bxb5 {[%clk 0:00:02]}  axb5 {[%clk 0:00:15]} 47. Rd1 {[%clk 0:00:02]}  Rc4 {[%clk 0:00:09]} 48. Qd3 {[%clk 0:00:02]}  Qh6 {[%clk 0:00:08]} 49. Ra7 {[%clk 0:00:01]}  R8c7 {[%clk 0:00:09]} 50. Ra5 {[%clk 0:00:01]}  Rxc3 {[%clk 0:00:08]} 51. Qxb5 {[%clk 0:00:02]}  Qh4 {[%clk 0:00:06]} 52. Ra7 {[%clk 0:00:01]}  Rc1 {[%clk 0:00:06]} 53. Rf1 {[%clk 0:00:01]}  Rxf1+ {[%clk 0:00:04]} 54. Qxf1 {[%clk 0:00:02]}  Qh6 {[%clk 0:00:03]} 55. Qf2 {[%clk 0:00:01]}  Qg6 {[%clk 0:00:02]} 56. Qb6 {[%clk 0:00:02]}  Qf7 {[%clk 0:00:03]} 57. Kh2 {[%clk 0:00:02]}  Qe7 {[%clk 0:00:03]} 58. Qd6 {[%clk 0:00:02]}  Qxd6 {[%clk 0:00:02]} 59. exd6 {[%clk 0:00:03]}  Rd7 {[%clk 0:00:03]} 60. h4 {[%clk 0:00:03]}  Kf6 {[%clk 0:00:03]} 61. Kh3 {[%clk 0:00:03]}  h5 {[%clk 0:00:03]} 62. hxg5+ {[%clk 0:00:04]}  Kxg5 {[%clk 0:00:04]} 63. b5 {[%clk 0:00:03]}  d4 {[%clk 0:00:04]} 64. b6 {[%clk 0:00:04]}  d3 {[%clk 0:00:04]} 65. Ra5+ {[%clk 0:00:04]}  Kf6 {[%clk 0:00:04]} 66. Ra1 {[%clk 0:00:03]}  Rxd6 {[%clk 0:00:04]} 67. Kh4 {[%clk 0:00:03]}  Rd5 {[%clk 0:00:05]} 68. Rd1 {[%clk 0:00:03]}  d2 {[%clk 0:00:05]} 69. g3 {[%clk 0:00:01]}  fxg3 {[%clk 0:00:06]} 70. Kh3 {[%clk 0:00:02]}  Kg5 {[%clk 0:00:07]} 71. Kxg3 {[%clk 0:00:03]}  h4+ {[%clk 0:00:08]} 72. Kf2 {[%clk 0:00:03]}  Kf4 {[%clk 0:00:07]} 73. Ke2 {[%clk 0:00:00]}  h3 {[%clk 0:00:08]} 0-1


[Site "https://www.chess.com"]

[Event "Titled Tuesday Blitz June 20 Late 2023"]
[White "Kamsky, Gata"]
[Black "Cardoso Cardoso, Jose Gabriel"]
[WhiteFideId "2000024"]
[BlackFideId "4430492"]
[WhiteElo "2660"]
[BlackElo "2484"]
[Result "1/2-1/2"]
[Round "8"]
[TimeControl "180+2"]
[Date "2023.06.20"]
[WhiteClock "0:00:14"]
[BlackClock "0:00:03"]
[Board "8"]

1. d4 {[%clk 0:02:59]}  Nf6 {[%clk 0:02:58]} 2. Nf3 {[%clk 0:02:56]}  d5 {[%clk 0:02:58]} 3. Bf4 {[%clk 0:02:55]}  c5 {[%clk 0:02:57]} 4. e3 {[%clk 0:02:55]}  Nc6 {[%clk 0:02:57]} 5. c3 {[%clk 0:02:55]}  Qb6 {[%clk 0:02:55]} 6. Qb3 {[%clk 0:02:54]}  c4 {[%clk 0:02:54]} 7. Qc2 {[%clk 0:02:54]}  Bf5 {[%clk 0:02:54]} 8. Qc1 {[%clk 0:02:54]}  h6 {[%clk 0:02:54]} 9. Nbd2 {[%clk 0:02:53]}  e6 {[%clk 0:02:53]} 10. Be2 {[%clk 0:02:53]}  Nh5 {[%clk 0:02:48]} 11. Bg3 {[%clk 0:02:53]}  Nxg3 {[%clk 0:02:43]} 12. hxg3 {[%clk 0:02:53]}  Qd8 {[%clk 0:02:41]} 13. O-O {[%clk 0:02:49]}  Be7 {[%clk 0:02:39]} 14. Re1 {[%clk 0:02:48]}  O-O {[%clk 0:02:34]} 15. Bd1 {[%clk 0:02:48]}  b5 {[%clk 0:02:33]} 16. e4 {[%clk 0:02:46]}  dxe4 {[%clk 0:02:26]} 17. Nxe4 {[%clk 0:02:44]}  a6 {[%clk 0:02:02]} 18. a3 {[%clk 0:02:27]}  Re8 {[%clk 0:01:56]} 19. Bc2 {[%clk 0:02:21]}  Bf8 {[%clk 0:01:50]} 20. Qf4 {[%clk 0:02:14]}  Ne7 {[%clk 0:01:40]} 21. Ne5 {[%clk 0:02:09]}  Ng6 {[%clk 0:01:39]} 22. Qe3 {[%clk 0:02:03]}  Nxe5 {[%clk 0:01:36]} 23. dxe5 {[%clk 0:02:02]}  Qc7 {[%clk 0:01:35]} 24. f4 {[%clk 0:01:59]}  Rad8 {[%clk 0:01:26]} 25. Qe2 {[%clk 0:01:51]}  Rd5 {[%clk 0:01:19]} 26. Rad1 {[%clk 0:01:49]}  Red8 {[%clk 0:01:18]} 27. g4 {[%clk 0:01:43]}  Bh7 {[%clk 0:01:17]} 28. g5 {[%clk 0:01:41]}  hxg5 {[%clk 0:00:59]} 29. Nxg5 {[%clk 0:01:40]}  Bxc2 {[%clk 0:00:54]} 30. Qxc2 {[%clk 0:01:39]}  Rd3 {[%clk 0:00:53]} 31. Qe2 {[%clk 0:01:29]}  Be7 {[%clk 0:00:47]} 32. Ne4 {[%clk 0:01:24]}  g6 {[%clk 0:00:42]} 33. g3 {[%clk 0:01:15]}  Qc6 {[%clk 0:00:38]} 34. Rxd3 {[%clk 0:01:07]}  Rxd3 {[%clk 0:00:38]} 35. Qg2 {[%clk 0:00:58]}  Kg7 {[%clk 0:00:37]} 36. Re2 {[%clk 0:00:56]}  Rd1+ {[%clk 0:00:33]} 37. Kh2 {[%clk 0:00:55]}  Qa8 {[%clk 0:00:33]} 38. Nf2 {[%clk 0:00:52]}  Qxg2+ {[%clk 0:00:29]} 39. Kxg2 {[%clk 0:00:52]}  Rd5 {[%clk 0:00:29]} 40. Ne4 {[%clk 0:00:51]}  Rd3 {[%clk 0:00:26]} 41. Rd2 {[%clk 0:00:48]}  Rxd2+ {[%clk 0:00:24]} 42. Nxd2 {[%clk 0:00:48]}  g5 {[%clk 0:00:21]} 43. Kf3 {[%clk 0:00:48]}  gxf4 {[%clk 0:00:21]} 44. gxf4 {[%clk 0:00:48]}  Kf8 {[%clk 0:00:19]} 45. a4 {[%clk 0:00:46]}  Ke8 {[%clk 0:00:13]} 46. axb5 {[%clk 0:00:46]}  axb5 {[%clk 0:00:14]} 47. Ke4 {[%clk 0:00:46]}  Kd7 {[%clk 0:00:14]} 48. Nf3 {[%clk 0:00:47]}  Bc5 {[%clk 0:00:14]} 49. Ng5 {[%clk 0:00:45]}  Ke7 {[%clk 0:00:13]} 50. Nf3 {[%clk 0:00:42]}  Kd7 {[%clk 0:00:13]} 51. Nd2 {[%clk 0:00:41]}  Kc6 {[%clk 0:00:12]} 52. b3 {[%clk 0:00:32]}  cxb3 {[%clk 0:00:11]} 53. Nxb3 {[%clk 0:00:32]}  Bb6 {[%clk 0:00:11]} 54. Nd2 {[%clk 0:00:30]}  Kc5 {[%clk 0:00:10]} 55. Kd3 {[%clk 0:00:29]}  Kc6 {[%clk 0:00:08]} 56. Ne4 {[%clk 0:00:29]}  Bd8 {[%clk 0:00:06]} 57. Nd6 {[%clk 0:00:25]}  f5 {[%clk 0:00:05]} 58. Nf7 {[%clk 0:00:19]}  Bb6 {[%clk 0:00:05]} 59. Ng5 {[%clk 0:00:19]}  Kd5 {[%clk 0:00:05]} 60. Nh7 {[%clk 0:00:18]}  Bf2 {[%clk 0:00:03]} 61. Nf6+ {[%clk 0:00:18]}  Kc6 {[%clk 0:00:04]} 62. Ne8 {[%clk 0:00:16]}  Bg3 {[%clk 0:00:04]} 63. Ke3 {[%clk 0:00:15]}  Be1 {[%clk 0:00:04]} 64. Kd3 {[%clk 0:00:15]}  Bg3 {[%clk 0:00:04]} 65. Ke3 {[%clk 0:00:16]}  Kd7 {[%clk 0:00:04]} 66. Nf6+ {[%clk 0:00:15]}  Kc6 {[%clk 0:00:03]} 67. Ne8 {[%clk 0:00:14]} 1/2-1/2


[Site "https://www.chess.com"]

[Event "Titled Tuesday Blitz June 20 Late 2023"]
[White "Simonian, Hrair"]
[Black "Le, Tuan Minh"]
[WhiteFideId "13302337"]
[BlackFideId "12401153"]
[WhiteElo "2447"]
[BlackElo "2566"]
[Result "0-1"]
[Round "8"]
[TimeControl "180+2"]
[Date "2023.06.20"]
[WhiteClock "0:00:00"]
[BlackClock "0:00:10"]
[Board "9"]

1. Nf3 {[%clk 0:03:00]}  d5 {[%clk 0:02:55]} 2. d4 {[%clk 0:03:00]}  Nf6 {[%clk 0:02:55]} 3. Bf4 {[%clk 0:03:00]}  c5 {[%clk 0:02:55]} 4. e3 {[%clk 0:03:00]}  Qb6 {[%clk 0:02:54]} 5. Nc3 {[%clk 0:02:59]}  Bd7 {[%clk 0:02:54]} 6. Rb1 {[%clk 0:02:53]}  e6 {[%clk 0:02:46]} 7. Be2 {[%clk 0:02:52]}  Be7 {[%clk 0:02:45]} 8. O-O {[%clk 0:02:51]}  O-O {[%clk 0:02:45]} 9. Ne5 {[%clk 0:02:51]}  Rc8 {[%clk 0:02:43]} 10. Bf3 {[%clk 0:02:42]}  Be8 {[%clk 0:02:42]} 11. a3 {[%clk 0:02:32]}  Nbd7 {[%clk 0:02:40]} 12. Na4 {[%clk 0:02:26]}  Qa6 {[%clk 0:02:24]} 13. Nxd7 {[%clk 0:02:12]}  Nxd7 {[%clk 0:02:03]} 14. Nxc5 {[%clk 0:02:10]}  Nxc5 {[%clk 0:02:04]} 15. dxc5 {[%clk 0:02:10]}  Bxc5 {[%clk 0:02:03]} 16. e4 {[%clk 0:02:04]}  d4 {[%clk 0:01:58]} 17. Be2 {[%clk 0:02:01]}  Qb6 {[%clk 0:01:48]} 18. Bd3 {[%clk 0:01:57]}  Bf8 {[%clk 0:01:41]} 19. e5 {[%clk 0:01:54]}  Bc6 {[%clk 0:01:38]} 20. Qg4 {[%clk 0:01:51]}  Bd5 {[%clk 0:01:31]} 21. b4 {[%clk 0:01:01]}  Rc3 {[%clk 0:01:22]} 22. a4 {[%clk 0:00:59]}  a6 {[%clk 0:00:50]} 23. a5 {[%clk 0:00:57]}  Qa7 {[%clk 0:00:50]} 24. Bd2 {[%clk 0:00:57]}  Rc7 {[%clk 0:00:50]} 25. h4 {[%clk 0:00:58]}  Rac8 {[%clk 0:00:50]} 26. h5 {[%clk 0:00:58]}  b5 {[%clk 0:00:39]} 27. axb6 {[%clk 0:00:56]}  Qxb6 {[%clk 0:00:39]} 28. Ra1 {[%clk 0:00:56]}  Rxc2 {[%clk 0:00:38]} 29. Bxc2 {[%clk 0:00:49]}  Rxc2 {[%clk 0:00:39]} 30. Rfc1 {[%clk 0:00:49]}  Rxd2 {[%clk 0:00:36]} 31. Rc8 {[%clk 0:00:44]}  d3 {[%clk 0:00:25]} 32. Rf1 {[%clk 0:00:44]}  Rc2 {[%clk 0:00:23]} 33. Re8 {[%clk 0:00:36]}  h6 {[%clk 0:00:23]} 34. Qh4 {[%clk 0:00:25]}  Qc7 {[%clk 0:00:17]} 35. b5 {[%clk 0:00:23]}  axb5 {[%clk 0:00:13]} 36. Qb4 {[%clk 0:00:22]}  Qc5 {[%clk 0:00:12]} 37. Qh4 {[%clk 0:00:19]}  d2 {[%clk 0:00:10]} 38. Qd8 {[%clk 0:00:00]}  Rc1 {[%clk 0:00:10]} 0-1


[Site "https://www.chess.com"]

[Event "Titled Tuesday Blitz June 20 Late 2023"]
[White "Babazada, Khazar"]
[Black "Can, Isik"]
[WhiteFideId "13413554"]
[BlackFideId "6383742"]
[WhiteElo "2369"]
[BlackElo "2374"]
[Result "1/2-1/2"]
[Round "8"]
[TimeControl "180+2"]
[Date "2023.06.20"]
[WhiteClock "0:00:50"]
[BlackClock "0:01:02"]
[Board "12"]

1. e4 {[%clk 0:03:00]}  c5 {[%clk 0:02:57]} 2. Nf3 {[%clk 0:03:00]}  e6 {[%clk 0:02:56]} 3. d4 {[%clk 0:03:00]}  cxd4 {[%clk 0:02:56]} 4. Nxd4 {[%clk 0:03:01]}  a6 {[%clk 0:02:57]} 5. Nc3 {[%clk 0:03:00]}  Qc7 {[%clk 0:02:54]} 6. Bd3 {[%clk 0:02:59]}  Nf6 {[%clk 0:02:51]} 7. O-O {[%clk 0:02:59]}  b5 {[%clk 0:02:48]} 8. Qe2 {[%clk 0:02:57]}  d6 {[%clk 0:02:45]} 9. Bg5 {[%clk 0:02:41]}  Be7 {[%clk 0:02:43]} 10. a4 {[%clk 0:02:34]}  b4 {[%clk 0:02:07]} 11. Na2 {[%clk 0:02:31]}  Qb6 {[%clk 0:01:59]} 12. Be3 {[%clk 0:02:29]}  Qb7 {[%clk 0:01:58]} 13. f3 {[%clk 0:02:25]}  O-O {[%clk 0:01:55]} 14. c3 {[%clk 0:02:21]}  bxc3 {[%clk 0:01:54]} 15. Nxc3 {[%clk 0:02:20]}  Bd7 {[%clk 0:01:51]} 16. a5 {[%clk 0:01:55]}  Nc6 {[%clk 0:01:48]} 17. Na4 {[%clk 0:01:52]}  Nxa5 {[%clk 0:01:23]} 18. Nb6 {[%clk 0:01:32]}  Qxb6 {[%clk 0:01:04]} 19. Nxe6 {[%clk 0:01:31]}  Qb4 {[%clk 0:01:04]} 20. Bd2 {[%clk 0:01:27]}  Qb6+ {[%clk 0:01:03]} 21. Be3 {[%clk 0:01:27]}  Qb4 {[%clk 0:01:04]} 22. Bd2 {[%clk 0:00:49]}  Qb6+ {[%clk 0:01:02]} 23. Be3 {[%clk 0:00:50]} 1/2-1/2


[Site "https://www.chess.com"]